lending/lending_fUSD_20250829
["ID","MTS","AMOUNT","RATE_DAILY","PERIOD"]
[382128866,1756510259153,-151.0,0.00043835,120]
[382128867,1756510259162,-400.0,0.00043835,120]
[382128868,1756510259172,-400.0,0.00043835,120]
[382128869,1756510259182,-400.0,0.00043835,120]
[382128870,1756510259191,-295.059634,0.00043835,120]
[382128871,1756510259201,-400.0,0.00043835,120]
[382128872,1756510259210,-400.0,0.00043835,120]
[382128873,1756510259220,-400.0,0.00043835,120]
[382128874,1756510259230,-400.0,0.00043835,120]
[382128875,1756510259239,-151.0,0.00043835,120]
[382128876,1756510259250,-769.69,0.00043835,120]
[382128877,1756510259259,-151.0,0.00043835,120]
[382128878,1756510259269,-662.248672,0.00043835,120]
[382128879,1756510259279,-400.0,0.00043835,120]
[382128880,1756510259288,-400.0,0.00043835,120]
[382128881,1756510259298,-151.0,0.00043835,120]
[382128882,1756510259307,-151.0,0.00043835,120]
[382128883,1756510259317,-662.248672,0.00043835,120]
[382128884,1756510259327,-400.0,0.00043835,120]
[382128885,1756510259337,-151.0,0.00043835,120]
[382128886,1756510259346,-662.248672,0.00043835,120]
[382128887,1756510259356,-400.0,0.00043835,120]
[382128888,1756510259366,-400.0,0.00043835,120]
[382128889,1756510259375,-404.139377,0.00043835,120]
[382128890,1756510259385,-662.248672,0.00043835,120]
[382128891,1756510259394,-400.0,0.00043835,120]
[382128892,1756510259404,-400.0,0.00043835,120]
[382128893,1756510259413,-400.0,0.00043835,120]
[382128894,1756510259423,-400.0,0.00043835,120]
[382128895,1756510259433,-339.79,0.00043835,120]
[382128896,1756510259443,-400.0,0.00043835,120]
[382128897,1756510259453,-400.0,0.00043835,120]
[382128898,1756510259463,-151.0,0.00043835,120]
[382128899,1756510259473,-400.0,0.00043835,120]
[382128900,1756510259483,-400.0,0.00043835,120]
[382128901,1756510259493,-151.0,0.00043835,120]
[382128902,1756510259502,-151.0,0.00043835,120]
[382128903,1756510259512,-400.0,0.00043835,120]
[382128904,1756510259522,-400.0,0.00043835,120]
[382128905,1756510259532,-400.0,0.00043835,120]
[382128906,1756510259542,-400.0,0.00043835,120]
[382128907,1756510259551,-151.0,0.00043835,120]
[382128908,1756510259566,-400.0,0.00043835,120]
[382128909,1756510259576,-582.051848,0.00043835,120]
[382128910,1756510259586,-151.0,0.00043835,120]
[382128911,1756510259596,-400.0,0.00043835,120]
[382128912,1756510259607,-151.0,0.00043835,120]
[382128913,1756510259617,-516.46,0.00043835,120]
[382128914,1756510259627,-400.0,0.00043835,120]
[382128915,1756510259637,-3857.67,0.00043835,14]
[382128916,1756510259647,-400.0,0.00043835,120]
[382128917,1756510259658,-400.0,0.00043835,120]
[382128918,1756510259668,-400.0,0.00043835,120]
[382128919,1756510259678,-400.0,0.00043835,120]
[382128920,1756510259689,-400.0,0.00043835,120]
[382128921,1756510259699,-400.0,0.00043835,120]
[382128922,1756510259709,-386.36987587,0.00043835,120]
[382128923,1756510259719,-400.0,0.00043835,120]
[382128924,1756510259729,-400.0,0.00043835,120]
[382128925,1756510259739,-400.0,0.00043835,120]
[382128926,1756510259749,-151.0,0.00043835,120]
[382128927,1756510259759,-400.0,0.00043835,120]
[382128928,1756510259769,-151.0,0.00043835,120]
[382128929,1756510259779,-2183.51,0.00043835,120]
[382128930,1756510259790,-400.0,0.00043835,120]
[382128931,1756510259799,-583.921918,0.00043835,120]
[382128932,1756510259809,-400.0,0.00043835,120]
[382128933,1756510259820,-400.0,0.00043835,120]
[382128934,1756510259830,-178.44011,0.00043835,120]
[382128935,1756510259842,-151.0,0.00043835,120]
[382128936,1756510259853,-429.15,0.00043835,120]
[382128937,1756510259863,-151.0,0.00043835,120]
[382128938,1756510259873,-400.0,0.00043835,16]
[382128939,1756510259884,-400.0,0.00043835,2]
[382128940,1756510259894,-400.0,0.00043835,120]
[382128941,1756510259905,-400.0,0.00043835,120]
[382128942,1756510259916,-400.0,0.00043835,120]
[382128943,1756510259926,-583.921918,0.00043835,120]
[382128944,1756510259937,-151.0,0.00043835,120]
[382128945,1756510259948,-151.0,0.00043835,120]
[382128946,1756510259959,-400.0,0.00043835,120]
[382128947,1756510259969,-400.0,0.00043835,120]
[382128948,1756510259980,-400.0,0.00043835,120]
[382128949,1756510259991,-583.921918,0.00043835,120]
[382128950,1756510260001,-400.0,0.00043835,120]
[382128951,1756510260013,-401.61177337,0.00043835,120]
[382128952,1756510260024,-151.0,0.00043835,120]
[382128953,1756510260035,-400.0,0.00043835,120]
[382128954,1756510260045,-151.0,0.00043835,120]
[382128955,1756510260057,-583.921918,0.00043835,120]
[382128956,1756510260068,-400.0,0.00043835,120]
[382128957,1756510260079,-151.0,0.00043835,120]
[382128958,1756510260089,-400.0,0.00043835,120]
[382128959,1756510260099,-400.0,0.00043835,7]
[382128960,1756510260109,-151.0,0.00043835,120]
[382128961,1756510260119,-158.156942,0.00043835,120]
[382128962,1756510260129,-151.0,0.00043835,120]
[382128963,1756510260139,-281.338691,0.00043835,120]
[382128964,1756510260150,-400.0,0.00043835,120]
[382128965,1756510260162,-400.0,0.00043835,120]
[382128966,1756510260172,-151.0,0.00043835,120]
[382128967,1756510260183,-281.338691,0.00043835,120]
[382128968,1756510260193,-151.0,0.00043835,120]
[382128969,1756510260203,-400.0,0.00043835,120]
[382128970,1756510260213,-281.338691,0.00043835,120]
[382128971,1756510260223,-173.296837,0.00043835,120]
[382128972,1756510260234,-400.0,0.00043835,120]
[382128973,1756510260244,-400.0,0.00043835,120]
[382128974,1756510260257,-400.0,0.00043835,120]
[382128975,1756510260268,-400.0,0.00043835,120]
[382128976,1756510260278,-281.338691,0.00043835,120]
[382128977,1756510260289,-161.270138,0.00043835,120]
[382128978,1756510260300,-400.0,0.00043835,120]
[382128979,1756510260311,-400.0,0.00043835,120]
[382128980,1756510260322,-400.0,0.00043835,120]
[382128981,1756510260334,-400.0,0.00043835,120]
[382128982,1756510260345,-281.338691,0.00043835,120]
[382128983,1756510260355,-151.0,0.00043835,120]
[382128984,1756510260365,-151.0,0.00043835,120]
[382128985,1756510260375,-281.338691,0.00043835,120]
[382128986,1756510260385,-208.868501,0.00043835,120]
[382128987,1756510260395,-400.0,0.00043835,120]
[382128988,1756510260404,-208.868501,0.00043835,120]
[382128989,1756510260412,-151.0,0.00043835,120]
[382128990,1756510260421,-151.0,0.00043835,120]
[382128991,1756510260430,-400.0,0.00043835,120]
[382128992,1756510260438,-281.338691,0.00043835,120]
[382128993,1756510260447,-400.0,0.00043835,120]
[382128994,1756510260457,-400.0,0.00043835,120]
[382128995,1756510260467,-208.868501,0.00043835,120]
[382128996,1756510260477,-281.338691,0.00043835,120]
[382128997,1756510260488,-151.0,0.00043835,120]
[382128998,1756510260497,-369.086167,0.00043835,120]
[382128999,1756510260507,-208.868501,0.00043835,120]
[382129000,1756510260518,-151.558782,0.00043835,120]
[382129001,1756510260528,-169.039108,0.00043835,120]
[382129002,1756510260539,-400.0,0.00043835,120]
[382129003,1756510260549,-169.039108,0.00043835,120]
[382129004,1756510260560,-400.0,0.00043835,120]
[382129005,1756510260570,-151.0,0.00043835,120]
[382129006,1756510260747,-208.868501,0.00043835,120]
[382129007,1756510260760,-151.0,0.00043835,120]
[382129008,1756510260770,-151.0,0.00043835,120]
[382129009,1756510260781,-208.868501,0.00043835,120]
[382129010,1756510260792,-169.039108,0.00043835,120]
[382129011,1756510260802,-151.0,0.00043835,120]
[382129012,1756510260812,-169.039108,0.00043835,120]
[382129013,1756510260821,-400.0,0.00043835,120]
[382129014,1756510260831,-400.0,0.00043835,120]
[382129015,1756510260840,-208.868501,0.00043835,120]
[382129016,1756510260850,-400.0,0.00043835,120]
[382129017,1756510260860,-208.868501,0.00043835,120]
[382129018,1756510260870,-169.039108,0.00043835,120]
[382129019,1756510260879,-169.039108,0.00043835,120]
[382129020,1756510260889,-400.0,0.00043835,120]
[382129021,1756510260899,-151.0,0.00043835,120]
[382129022,1756510260909,-151.0,0.00043835,120]
[382129023,1756510260919,-400.0,0.00043835,120]
[382129024,1756510260928,-151.0,0.00043835,120]
[382129025,1756510260938,-400.0,0.00043835,120]
[382129026,1756510260948,-151.0,0.00043835,120]
[382129027,1756510260960,-174.61851,0.00043835,2]
[382129028,1756510260969,-174.61851,0.00043835,2]
[382129029,1756510260979,-298.880527,0.00043835,120]
[382129030,1756510260992,-169.039108,0.00043835,120]
[382129031,1756510261002,-400.0,0.00043835,120]
[382129032,1756510261012,-169.039108,0.00043835,120]
[382129033,1756510261022,-400.0,0.00043835,120]
[382129034,1756510261032,-2266.76,0.00043835,2]
[382129035,1756510261042,-174.61851,0.00043835,2]
[382129036,1756510261051,-174.61851,0.00043835,2]
[382129037,1756510261060,-400.0,0.00043835,120]
[382129038,1756510261070,-400.0,0.00043835,120]
[382129039,1756510261080,-151.0,0.00043835,120]
[382129040,1756510261089,-174.61851,0.00043835,2]
[382129041,1756510261099,-500.0,0.00043836,30]
[382129042,1756510261109,-166.66666667,0.0004384,120]
[382129043,1756510261118,-172.39751247,0.00043873,10]
[382129044,1756510261128,-160.2154621,0.00043873,10]
[382129045,1756510261138,-500.57565334,0.00043873,10]
[382129046,1756510261148,-162.17811553,0.00043873,7]
[382129047,1756510261158,-500.0,0.00043873,10]
[382129048,1756510261168,-500.0,0.00043873,10]
[382129049,1756510261178,-353.58734178,0.00043873,10]
[382129050,1756510261187,-305.93094371,0.00043873,10]
[382129051,1756510261197,-500.0,0.00043873,10]
[382129052,1756510261207,-500.0,0.00043873,10]
[382129053,1756510261216,-500.0,0.00043873,10]
[382129054,1756510261226,-500.0,0.00043873,10]
[382129055,1756510261236,-501.14147866,0.00043873,10]
[382129056,1756510261246,-500.0,0.00043873,10]
[382129057,1756510261255,-500.0,0.00043873,10]
[382129058,1756510261265,-500.0,0.00043873,10]
[382129059,1756510261275,-996.5,0.00043896,14]
[382129060,1756510261284,-300.0,0.000439,16]
[382129061,1756510261293,-151.0,0.00043917,60]
[382129062,1756510261303,-3885.139252,0.00043917,120]
[382129063,1756510261312,-151.0,0.00043917,60]
[382129064,1756510261322,-235.258877,0.00043917,120]
[382129065,1756510261332,-3885.139252,0.00043917,120]
[382129066,1756510261344,-151.0,0.00043917,60]
[382129067,1756510261354,-235.258877,0.00043917,120]
[382129068,1756510261364,-3885.139252,0.00043917,120]
[382129069,1756510261375,-235.258877,0.00043917,120]
[382129070,1756510261385,-151.0,0.00043917,120]
[382129071,1756510261395,-3885.139252,0.00043917,120]
[382129072,1756510261405,-235.258877,0.00043917,120]
[382129073,1756510261415,-161.678332,0.00043917,120]
[382129074,1756510261425,-473.149593,0.00043917,120]
[382129075,1756510261435,-473.149593,0.00043917,120]
[382129076,1756510261445,-202.932138,0.00043917,120]
[382129077,1756510261455,-473.149593,0.00043917,120]
[382129078,1756510261466,-473.149593,0.00043917,120]
[382129079,1756510261477,-202.932138,0.00043917,120]
[382129080,1756510261486,-216.264085,0.00043917,120]
[382129081,1756510261496,-216.264085,0.00043917,120]
[382129082,1756510261506,-202.932138,0.00043917,120]
[382129083,1756510261516,-295.059634,0.00043917,120]
[382129084,1756510261525,-216.264085,0.00043917,120]
[382129085,1756510261535,-202.932138,0.00043917,120]
[382129086,1756510261545,-295.059634,0.00043917,120]
[382129087,1756510261555,-151.0,0.00043917,120]
[382129088,1756510261565,-216.264085,0.00043917,120]
[382129089,1756510261574,-213.139708,0.00043917,120]
[382129090,1756510261585,-295.059634,0.00043917,120]
[382129091,1756510261594,-295.059634,0.00043917,120]
[382129092,1756510261605,-151.0,0.00043917,120]
[382129093,1756510261614,-151.0,0.00043917,120]
[382129094,1756510261624,-662.248672,0.00043917,120]
[382129095,1756510261633,-151.0,0.00043917,120]
[382129096,1756510261643,-151.348756,0.00043917,120]
[382129097,1756510261652,-662.248672,0.00043917,120]
[382129098,1756510261662,-151.0,0.00043917,120]
[382129099,1756510261671,-662.248672,0.00043917,120]
[382129100,1756510261679,-662.248672,0.00043917,120]
[382129101,1756510261688,-151.0,0.00043917,120]
[382129102,1756510261697,-151.0,0.00043917,120]
[382129103,1756510261707,-151.0,0.00043917,120]
[382129104,1756510261716,-151.0,0.00043917,120]
[382129105,1756510261726,-151.0,0.00043917,120]
[382129106,1756510261735,-583.921918,0.00043917,120]
[382129107,1756510261745,-583.921918,0.00043917,120]
[382129108,1756510261755,-583.921918,0.00043917,120]
[382129109,1756510261764,-583.921918,0.00043917,120]
[382129110,1756510261774,-771.76409583,0.00043995,14]
[382129111,1756510261784,-459.25,0.00044,120]
[382129112,1756510261793,-2000.0,0.00044,30]
[382129113,1756510261802,-2000.0,0.00044,30]
[382129114,1756510261812,-2000.0,0.00044,30]
[382129115,1756510261822,-2200.43641685,0.00044,30]
[382129116,1756510261832,-155.79859937,0.00044009,120]
[382129117,1756510261841,-155.79859937,0.00044009,120]
[382129118,1756510261850,-155.79859937,0.00044009,120]
[382129119,1756510261860,-155.79859937,0.00044009,120]
[382129120,1756510261869,-155.79859937,0.00044009,120]
[382129121,1756510261878,-155.79859937,0.00044009,120]
[382129122,1756510261888,-155.79859937,0.00044009,120]
[382129123,1756510261898,-155.79859937,0.00044009,120]
[382129124,1756510261908,-155.79859937,0.00044009,120]
[382129125,1756510261918,-155.79859937,0.00044009,120]
[382129126,1756510261928,-155.79859937,0.00044009,120]
[382129127,1756510261938,-155.79859937,0.00044009,120]
[382129128,1756510261948,-155.79859937,0.00044009,120]
[382129129,1756510261959,-155.79859937,0.00044009,120]
[382129130,1756510261969,-155.79859937,0.00044009,120]
[382129131,1756510261979,-155.79859937,0.00044009,120]
[382129132,1756510261989,-155.79859937,0.00044009,120]
[382129133,1756510261999,-155.79859937,0.00044009,120]
[382129134,1756510262011,-155.79859937,0.00044009,120]
[382129135,1756510262022,-155.79,0.00044009,120]
[382129136,1756510262032,-363.53006519,0.00044009,120]
[382129137,1756510262043,-363.53006519,0.00044009,120]
[382129138,1756510262053,-363.53006519,0.00044009,120]
[382129139,1756510262063,-363.53006519,0.00044009,120]
[382129140,1756510262073,-363.53006519,0.00044009,120]
[382129141,1756510262083,-363.53006519,0.00044009,120]
[382129142,1756510262092,-363.53006519,0.00044009,120]
[382129143,1756510262103,-363.53006519,0.00044009,120]
[382129144,1756510262113,-363.53006519,0.00044009,120]
[382129145,1756510262123,-363.53006519,0.00044009,120]
[382129146,1756510262132,-363.53006519,0.00044009,120]
[382129147,1756510262142,-363.53006519,0.00044009,120]
[382129148,1756510262153,-363.53006519,0.00044009,120]
[382129149,1756510262162,-363.53006519,0.00044009,120]
[382129150,1756510262172,-363.53006519,0.00044009,120]
[382129151,1756510262182,-180.9754053,0.00044009,120]
[382129152,1756510262191,-150.0,0.00044044,14]
[382129153,1756510262200,-154.81787492,0.00044044,14]
[382129154,1756510262210,-363.53006519,0.00044064,120]
[382129155,1756510262220,-244.55385483,0.0004409,14]
[382129156,1756510262229,-584.72307638,0.0004409,7]
[382129157,1756510262239,-6149.0,0.00044094,2]
[382129158,1756510262249,-1256.0,0.00044094,2]
[382129159,1756510262262,-4157.0,0.00044094,2]
[382129160,1756510262273,-3375.0,0.00044094,2]
[382129161,1756510262283,-926.0,0.00044095,2]
[382129162,1756510262294,-2031.0,0.00044095,2]
[382129163,1756510262304,-898.73104871,0.00044099,120]
[382129164,1756510262315,-3219156.48723821,0.000441,13]
[382129165,1756510263310,-75.32052143,0.00026008,2]
[382129166,1756510263326,-221.6734418,0.00026008,2]
[382129167,1756510263337,-174.61851,0.00030137,2]
[382129168,1756510263348,-88.0776887,0.00031,2]
[382129169,1756510263361,-86.5408213,0.00031,2]
[382129170,1756510263373,-400.0,0.00043835,120]
[382129171,1756510263383,-232.088256,0.00043835,120]
[382129172,1756510263394,-174.61851,0.00043835,2]
[382129173,1756510263404,-400.0,0.00043835,120]
[382129174,1756510263414,-406.17439508,0.00043835,120]
[382129175,1756510263424,-400.0,0.00043835,120]
[382129176,1756510263434,-400.0,0.00043835,120]
[382129177,1756510263444,-174.61851,0.00043835,2]
[382129178,1756510263454,-400.0,0.00043835,120]
[382129179,1756510263464,-174.61851,0.00043835,2]
[382129180,1756510263475,-400.0,0.00043835,120]
[382129181,1756510263486,-400.0,0.00043835,120]
[382129182,1756510263498,-400.0,0.00043835,120]
[382129183,1756510263508,-10376.02857085,0.000441,13]
[382129184,1756510263537,-151.0,0.00031,7]
[382129185,1756510263548,-3350.38728126,0.000441,13]
[382129186,1756510264289,-151.0,0.00030137,7]
[382129187,1756510264300,-151.0,0.00030137,7]
[382129188,1756510264310,-151.0,0.00031,7]
[382129189,1756510264320,-151.0,0.00031,7]
[382129190,1756510264330,-152.0,0.00038,120]
[382129191,1756510264341,-152.0,0.000395,120]
[382129192,1756510264353,-1598.92,0.00043484,30]
[382129193,1756510264363,-400.0,0.00043835,120]
[382129194,1756510264373,-400.0,0.00043835,120]
[382129195,1756510264383,-400.0,0.00043835,120]
[382129196,1756510264393,-183.317435,0.00043835,120]
[382129197,1756510264404,-380.56419364,0.00043835,120]
[382129198,1756510265915,159.84,0.00013699,2]
[382129199,1756510322980,251.0,0.00024755,120]
[382129200,1756510326875,2500.0,0.00024755,120]
[382129201,1756510327748,300.0,0.00024755,120]
[382129202,1756510343004,250.0,0.00015,2]
[382129203,1756510344088,300.0,0.00017,2]
[382129210,1756510600388,-207.79606374,0.00018849,2]
[382129211,1756510608060,-150.0,0.00018849,2]
[382129212,1756510615218,-657.678476,0.00018849,2]
[382129213,1756510622563,-400.0,0.00018849,2]
[382129214,1756510690823,-108.52546026,0.00018849,2]
[382129215,1756510690846,-159.84,0.00022505,2]
[382129217,1756510703208,235.8822025,0.000249,2]
[382129218,1756510703311,235.8822025,0.000272,7]
[382129221,1756510706298,-235.8822025,0.000295,12]
[382129222,1756510744367,1524.0,0.00019315,2]
[382129225,1756510875594,377.411524,0.000249,2]
[382129228,1756511053778,327.08998748,0.000249,2]
[382129230,1756511068706,203.78,0.00020577,2]
[382129237,1756511315641,152.27,0.00013699,2]
[382129238,1756511315872,152.27,0.00021918,2]
[382129243,1756511432577,-152.27,0.00030137,2]
[382129244,1756511432590,-404.95,0.00030845,2]
[382129245,1756511432604,-208.0,0.0003266,2]
[382129246,1756511432616,-151.0,0.00033074,2]
[382129247,1756511432629,-151.0,0.00033075,2]
[382129249,1756511432642,-251.0,0.00033151,120]
[382129250,1756511432655,-40.84667435,0.00033151,2]
[382129251,1756511432670,-209.15332565,0.00033151,2]
[382129252,1756511432684,-139.75006443,0.00033212,2]
[382129253,1756511432699,-11.24993557,0.00033212,2]
[382129254,1756511432712,-212.29261308,0.00033241,2]
[382129255,1756511432725,-208.0,0.0003387,2]
[382129256,1756511432739,-250.0,0.00033929,2]
[382129257,1756511432756,-151.0,0.00034109,2]
[382129258,1756511432770,-10.22613542,0.00035,120]
[382129259,1756511432795,-306.22416285,0.00035,120]
[382129260,1756511432804,-208.0,0.0003508,2]
[382129261,1756511432815,-208.0,0.0003629,2]
[382129263,1756511432825,-1200.0,0.00036399,3]
[382129265,1756511432834,-1501.33,0.000364,2]
[382129266,1756511432844,-3925.40451958,0.000364,2]
[382129271,1756511438663,-2114.22548042,0.000364,2]
[382129272,1756511438672,-299.99,0.000364,30]
[382129273,1756511438682,-150.99,0.000364,2]
[382129274,1756511438691,-894.09538004,0.000364,2]
[382129287,1756511438954,-443.13092382,0.000364,2]
[382129288,1756511440518,-513.14376,0.000364,2]
[382129289,1756511440530,-901.4202829,0.000364,2]
[382129290,1756511440612,-5738.46851271,0.000364,2]
[382129291,1756511440623,-1509.73114053,0.000364,2]
[382129292,1756511440632,-119.01885947,0.0003749,2]
[382129293,1756511440785,-88.98114053,0.0003749,2]
[382129294,1756511440795,-152.0,0.00038,120]
[382129295,1756511440804,-152.27,0.00038356,2]
[382129296,1756511440814,-208.0,0.000387,2]
[382129297,1756511440827,-165.79,0.00039411,2]
[382129298,1756511440839,-162.97,0.00039465,120]
[382129299,1756511440848,-208.0,0.0003991,2]
[382129300,1756511440858,-214.0,0.0004,30]
[382129301,1756511440867,-84.87885947,0.0004,56]
[382129305,1756511443478,-806.49803386,0.0004,56]
[382129306,1756511443655,-1819.12810667,0.0004,56]
[382129307,1756511443665,-164.592,0.0004,56]
[382129308,1756511443674,-2922.09,0.00040052,2]
[382129309,1756511443684,-226.16,0.00040418,120]
[382129310,1756511443695,-1000.0,0.00040512,2]
[382129311,1756511443704,-666.0,0.00040596,3]
[382129312,1756511443714,-153.0,0.00040597,30]
[382129313,1756511443723,-153.0,0.00040597,30]
[382129314,1756511443732,-211.0,0.00040597,30]
[382129315,1756511443741,-211.0,0.00040597,30]
[382129316,1756511443754,-211.0,0.00040597,30]
[382129317,1756511443763,-211.0,0.00040597,30]
[382129318,1756511443773,-211.0,0.00040597,30]
[382129319,1756511443783,-211.0,0.00040597,30]
[382129320,1756511443792,-211.0,0.00040597,30]
[382129321,1756511443801,-211.0,0.00040597,30]
[382129322,1756511443811,-211.0,0.00040597,30]
[382129323,1756511443820,-211.0,0.00040597,30]
[382129325,1756511443830,-211.0,0.00040597,30]
[382129326,1756511443840,-211.0,0.00040597,30]
[382129327,1756511443849,-211.0,0.00040597,30]
[382129328,1756511443858,-211.0,0.00040597,30]
[382129329,1756511443867,-153.0,0.00040601,30]
[382129330,1756511443876,-153.0,0.00040601,30]
[382129331,1756511443886,-211.0,0.00040602,30]
[382129332,1756511443895,-211.0,0.00040602,30]
[382129333,1756511443904,-211.0,0.00040602,30]
[382129334,1756511443914,-211.0,0.00040602,30]
[382129335,1756511443923,-211.0,0.00040602,30]
[382129336,1756511443933,-211.0,0.00040602,30]
[382129337,1756511443942,-211.0,0.00040602,30]
[382129338,1756511443951,-211.0,0.00040602,30]
[382129339,1756511443961,-211.0,0.00040602,30]
[382129340,1756511443970,-211.0,0.00040602,30]
[382129341,1756511443980,-47.55210457,0.00040602,30]
[382129342,1756511444013,-163.44789543,0.00040602,30]
[382129343,1756511444023,-211.0,0.00040602,30]
[382129344,1756511444032,-211.0,0.00040602,30]
[382129345,1756511444042,-211.0,0.00040602,30]
[382129346,1756511444052,-153.0,0.00040606,30]
[382129347,1756511444062,-153.0,0.00040606,30]
[382129348,1756511444072,-197.55210457,0.00040607,30]
[382129349,1756511444084,-13.44789543,0.00040607,30]
[382129350,1756511444093,-211.0,0.00040607,30]
[382129351,1756511444103,-211.0,0.00040607,30]
[382129352,1756511444112,-106.45725163,0.00040607,30]
[382129353,1756511444135,-104.54274837,0.00040607,30]
[382129354,1756511444145,-211.0,0.00040607,30]
[382129355,1756511444154,-211.0,0.00040607,30]
[382129356,1756511444163,-211.0,0.00040607,30]
[382129357,1756511444173,-211.0,0.00040607,30]
[382129358,1756511444182,-211.0,0.00040607,30]
[382129359,1756511444194,-211.0,0.00040607,30]
[382129360,1756511444204,-211.0,0.00040607,30]
[382129361,1756511444213,-211.0,0.00040607,30]
[382129362,1756511444223,-211.0,0.00040607,30]
[382129363,1756511444232,-211.0,0.00040607,30]
[382129364,1756511444242,-153.0,0.0004061,30]
[382129365,1756511444252,-153.0,0.0004061,30]
[382129366,1756511444262,-211.0,0.00040611,30]
[382129367,1756511444271,-211.0,0.00040611,30]
[382129368,1756511444280,-211.0,0.00040611,30]
[382129369,1756511444290,-211.0,0.00040611,30]
[382129370,1756511444299,-211.0,0.00040611,30]
[382129371,1756511444309,-211.0,0.00040611,30]
[382129372,1756511444318,-211.0,0.00040611,30]
[382129373,1756511444328,-211.0,0.00040611,30]
[382129374,1756511444338,-211.0,0.00040611,30]
[382129375,1756511444348,-211.0,0.00040611,30]
[382129376,1756511444357,-211.0,0.00040611,30]
[382129377,1756511444367,-211.0,0.00040611,30]
[382129378,1756511444376,-211.0,0.00040611,30]
[382129379,1756511444386,-211.0,0.00040611,30]
[382129380,1756511444396,-152.0,0.000409,120]
[382129381,1756511444406,-107.399843,0.00040922,7]
[382129382,1756511444419,-52.600157,0.00040922,7]
[382129383,1756511444429,-208.0,0.0004112,2]
[382129384,1756511444439,-539.0,0.00041432,7]
[382129385,1756511444448,-250.0,0.00041769,120]
[382129386,1756511444458,-225.0,0.00042045,2]
[382129387,1756511444467,-1334.7686502,0.000422,2]
[382129388,1756511444480,-665.2313498,0.000422,2]
[382129389,1756511444489,-1720.22423053,0.00042238,2]
[382129390,1756511444499,-59.64328645,0.00042239,2]
[382129391,1756511444510,-532.03,0.00042239,2]
[382129394,1756511446450,-248.0,0.00040593,30]
[382129395,1756511446461,-248.0,0.00040593,30]
[382129396,1756511446472,-248.0,0.00040593,30]
[382129397,1756511446482,-248.0,0.00040593,30]
[382129398,1756511446492,-248.0,0.00040593,30]
[382129399,1756511446502,-2048.0,0.00042239,2]
[382129400,1756511446673,-248.0,0.00040593,30]
[382129401,1756511446683,-1068.65614488,0.00042239,2]
[382129402,1756511446695,-1837.40604049,0.00042239,2]
[382129403,1756511446764,-248.0,0.00040593,30]
[382129404,1756511446774,-81.21552,0.00042239,2]
[382129413,1756511590208,443.71065597,0.0002601,4]
[382129414,1756511590657,443.7106562,0.000249,2]
[382129415,1756511591079,443.71065597,0.00027121,7]
[382129416,1756511721080,160.95201505,0.00027,5]
[382129419,1756511774448,399.33959037,0.0002601,4]
[382129420,1756511774501,399.33959037,0.00027121,7]
[382129422,1756511775710,399.33959046,0.000249,2]
[382129424,1756511946488,359.40563142,0.000249,2]
[382129425,1756511946527,359.40563133,0.00027121,7]
[382129427,1756511947369,359.40563133,0.0002601,4]